[Event "January 2 Late 2024"]
[Site "https://www.chess.com"]
[Date "2024.01.02"]
[Round "11"]
[White "Duda, Jan-Krzysztof"]
[Black "Troff, Kayden"]
[Result "1/2-1/2"]
[Board "13"]
[TimeControl "180+1"]
[WhiteFideId "1170546"]
[BlackFideId "2047896"]
[WhiteElo "3038"]
[BlackElo "2821"]
[WhiteTeam "POL"]
[BlackTeam "USA"]
[WhiteClock "0:00:06"]
[BlackClock "0:00:10"]

1. e4 {[%clk 0:03:00]}  c5 {[%clk 0:02:59]} 2. f4 {[%clk 0:03:00]}  g6 {[%clk 0:02:56]} 3. Nf3 {[%clk 0:02:59]}  Bg7 {[%clk 0:02:56]} 4. c3 {[%clk 0:02:59]}  Nc6 {[%clk 0:02:50]} 5. Bb5 {[%clk 0:02:51]}  d5 {[%clk 0:02:44]} 6. Bxc6+ {[%clk 0:02:41]}  bxc6 {[%clk 0:02:43]} 7. e5 {[%clk 0:02:42]}  Ba6 {[%clk 0:02:40]} 8. d3 {[%clk 0:02:42]}  f6 {[%clk 0:02:38]} 9. O-O {[%clk 0:02:39]}  Nh6 {[%clk 0:02:37]} 10. Be3 {[%clk 0:02:07]}  d4 {[%clk 0:02:21]} 11. cxd4 {[%clk 0:02:07]}  Nf5 {[%clk 0:01:57]} 12. Qc1 {[%clk 0:02:01]}  O-O {[%clk 0:01:49]} 13. dxc5 {[%clk 0:01:49]}  Qxd3 {[%clk 0:01:47]} 14. Re1 {[%clk 0:01:49]}  fxe5 {[%clk 0:01:46]} 15. fxe5 {[%clk 0:01:50]}  Nxe3 {[%clk 0:01:12]} 16. Qxe3 {[%clk 0:01:45]}  Qxe3+ {[%clk 0:01:02]} 17. Rxe3 {[%clk 0:01:46]}  Rab8 {[%clk 0:01:01]} 18. b3 {[%clk 0:01:17]}  Rb5 {[%clk 0:00:24]} 19. Nc3 {[%clk 0:01:12]}  Rxc5 {[%clk 0:00:22]} 20. Ne4 {[%clk 0:01:11]}  Rxe5 {[%clk 0:00:18]} 21. Nxe5 {[%clk 0:00:59]}  Bxe5 {[%clk 0:00:19]} 22. Rae1 {[%clk 0:00:58]}  Bd4 {[%clk 0:00:19]} 23. Nd2 {[%clk 0:00:55]}  Rd8 {[%clk 0:00:13]} 24. Nf3 {[%clk 0:00:54]}  Bxe3+ {[%clk 0:00:13]} 25. Rxe3 {[%clk 0:00:55]}  Rd1+ {[%clk 0:00:13]} 26. Kf2 {[%clk 0:00:55]}  Kf8 {[%clk 0:00:12]} 27. Rc3 {[%clk 0:00:48]}  Ra1 {[%clk 0:00:05]} 28. a4 {[%clk 0:00:47]}  Ra2+ {[%clk 0:00:05]} 29. Kg3 {[%clk 0:00:46]}  Bf1 {[%clk 0:00:06]} 30. Ne1 {[%clk 0:00:42]}  Ke8 {[%clk 0:00:04]} 31. Rxc6 {[%clk 0:00:40]}  Re2 {[%clk 0:00:04]} 32. Rc1 {[%clk 0:00:40]}  Rb2 {[%clk 0:00:05]} 33. Rc8+ {[%clk 0:00:30]}  Kd7 {[%clk 0:00:02]} 34. Ra8 {[%clk 0:00:30]}  Rxb3+ {[%clk 0:00:03]} 35. Kf2 {[%clk 0:00:30]}  Bc4 {[%clk 0:00:03]} 36. Rxa7+ {[%clk 0:00:30]}  Ke6 {[%clk 0:00:03]} 37. h4 {[%clk 0:00:21]}  Kf6 {[%clk 0:00:03]} 38. Rc7 {[%clk 0:00:19]}  Bd5 {[%clk 0:00:03]} 39. Rc5 {[%clk 0:00:17]}  e6 {[%clk 0:00:03]} 40. a5 {[%clk 0:00:18]}  Rb2+ {[%clk 0:00:03]} 41. Kg3 {[%clk 0:00:18]}  Ra2 {[%clk 0:00:04]} 42. Nf3 {[%clk 0:00:14]}  Bxf3 {[%clk 0:00:03]} 43. gxf3 {[%clk 0:00:10]}  h6 {[%clk 0:00:04]} 44. Rb5 {[%clk 0:00:08]}  g5 {[%clk 0:00:04]} 45. hxg5+ {[%clk 0:00:03]}  hxg5 {[%clk 0:00:05]} 46. Rc5 {[%clk 0:00:03]}  Ra3 {[%clk 0:00:04]} 47. Kf2 {[%clk 0:00:04]}  Ra2+ {[%clk 0:00:05]} 48. Ke3 {[%clk 0:00:04]}  Ra3+ {[%clk 0:00:06]} 49. Ke2 {[%clk 0:00:05]}  Ra2+ {[%clk 0:00:06]} 50. Ke1 {[%clk 0:00:05]}  Ra3 {[%clk 0:00:06]} 51. Kf2 {[%clk 0:00:05]}  Kg6 {[%clk 0:00:07]} 52. Rb5 {[%clk 0:00:05]}  Kf6 {[%clk 0:00:07]} 53. Ke2 {[%clk 0:00:05]}  Kg6 {[%clk 0:00:06]} 54. Re5 {[%clk 0:00:04]}  Kf6 {[%clk 0:00:07]} 55. Rc5 {[%clk 0:00:04]}  Kg6 {[%clk 0:00:07]} 56. Rb5 {[%clk 0:00:05]}  Kf6 {[%clk 0:00:08]} 57. Kf2 {[%clk 0:00:05]}  Kg6 {[%clk 0:00:08]} 58. Kg3 {[%clk 0:00:05]}  Kf6 {[%clk 0:00:08]} 59. Rc5 {[%clk 0:00:06]}  Ra2 {[%clk 0:00:08]} 60. Kg4 {[%clk 0:00:05]}  Ra4+ {[%clk 0:00:08]} 61. Kg3 {[%clk 0:00:05]}  Ra2 {[%clk 0:00:09]} 62. Rb5 {[%clk 0:00:05]}  Kg6 {[%clk 0:00:09]} 63. f4 {[%clk 0:00:05]}  Ra3+ {[%clk 0:00:09]} 64. Kg4 {[%clk 0:00:05]}  gxf4 {[%clk 0:00:09]} 65. Kxf4 {[%clk 0:00:06]}  Kf6 {[%clk 0:00:10]} 66. Ke4 {[%clk 0:00:06]}  e5 {[%clk 0:00:09]} 67. Rb6+ {[%clk 0:00:05]}  Ke7 {[%clk 0:00:09]} 68. a6 {[%clk 0:00:06]}  Kd7 {[%clk 0:00:10]} 69. Kxe5 {[%clk 0:00:05]}  Kc7 {[%clk 0:00:11]} 70. Rg6 {[%clk 0:00:05]}  Kb8 {[%clk 0:00:09]} 71. Kd4 {[%clk 0:00:05]}  Ka7 {[%clk 0:00:09]} 72. Kc5 {[%clk 0:00:06]}  Ra5+ {[%clk 0:00:09]} 73. Kb4 {[%clk 0:00:06]}  Rxa6 {[%clk 0:00:10]} 74. Rxa6+ {[%clk 0:00:06]}  Kxa6 {[%clk 0:00:10]} 1/2-1/2

[Event "January 2 Late 2024"]
[Site "https://www.chess.com"]
[Date "2024.01.02"]
[Round "11"]
[White "Yarar, Bora"]
[Black "Xiong, Jeffery"]
[Result "1/2-1/2"]
[Board "16"]
[TimeControl "180+1"]
[WhiteFideId "34588400"]
[BlackFideId "2047640"]
[WhiteElo "2787"]
[BlackElo "3011"]
[WhiteTeam "TUR"]
[BlackTeam "USA"]
[WhiteClock "0:00:07"]
[BlackClock "0:00:55"]

1. e4 {[%clk 0:03:00]}  c5 {[%clk 0:03:00]} 2. c3 {[%clk 0:03:00]}  e6 {[%clk 0:02:59]} 3. d4 {[%clk 0:03:00]}  cxd4 {[%clk 0:03:00]} 4. cxd4 {[%clk 0:03:01]}  d5 {[%clk 0:02:59]} 5. e5 {[%clk 0:03:01]}  Nc6 {[%clk 0:03:00]} 6. Nf3 {[%clk 0:03:01]}  Nge7 {[%clk 0:03:01]} 7. Na3 {[%clk 0:03:01]}  Nf5 {[%clk 0:02:58]} 8. Nc2 {[%clk 0:03:02]}  Be7 {[%clk 0:02:56]} 9. Bd3 {[%clk 0:03:02]}  g5 {[%clk 0:02:54]} 10. g4 {[%clk 0:02:57]}  Nh4 {[%clk 0:02:45]} 11. Nxh4 {[%clk 0:02:55]}  gxh4 {[%clk 0:02:46]} 12. h3 {[%clk 0:02:53]}  Qb6 {[%clk 0:02:46]} 13. Rb1 {[%clk 0:02:43]}  Bd7 {[%clk 0:02:45]} 14. Be3 {[%clk 0:02:43]}  Nb4 {[%clk 0:02:45]} 15. Nxb4 {[%clk 0:02:42]}  Bxb4+ {[%clk 0:02:46]} 16. Kf1 {[%clk 0:02:42]}  Be7 {[%clk 0:02:43]} 17. Kg2 {[%clk 0:02:41]}  O-O-O {[%clk 0:02:38]} 18. b4 {[%clk 0:02:40]}  Rdg8 {[%clk 0:02:37]} 19. a4 {[%clk 0:02:36]}  h5 {[%clk 0:02:37]} 20. a5 {[%clk 0:02:34]}  Qd8 {[%clk 0:02:37]} 21. b5 {[%clk 0:02:35]}  Kb8 {[%clk 0:02:37]} 22. a6 {[%clk 0:02:28]}  b6 {[%clk 0:02:11]} 23. f3 {[%clk 0:02:25]}  Bg5 {[%clk 0:02:01]} 24. Qd2 {[%clk 0:02:14]}  Bxe3 {[%clk 0:02:01]} 25. Qxe3 {[%clk 0:02:14]}  f5 {[%clk 0:01:57]} 26. exf6 {[%clk 0:02:07]}  Qxf6 {[%clk 0:01:58]} 27. Rbe1 {[%clk 0:02:00]}  Rc8 {[%clk 0:01:55]} 28. Rc1 {[%clk 0:01:48]}  Rhf8 {[%clk 0:01:41]} 29. g5 {[%clk 0:01:26]}  Qf4 {[%clk 0:01:41]} 30. Rxc8+ {[%clk 0:01:15]}  Kxc8 {[%clk 0:01:41]} 31. Qxf4 {[%clk 0:01:05]}  Rxf4 {[%clk 0:01:42]} 32. g6 {[%clk 0:01:02]}  Be8 {[%clk 0:01:42]} 33. g7 {[%clk 0:00:45]}  Bf7 {[%clk 0:01:42]} 34. Bh7 {[%clk 0:00:44]}  Rxd4 {[%clk 0:01:42]} 35. Rc1+ {[%clk 0:00:37]}  Kd7 {[%clk 0:01:42]} 36. Rc2 {[%clk 0:00:37]}  Rb4 {[%clk 0:01:39]} 37. g8=Q {[%clk 0:00:25]}  Bxg8 {[%clk 0:01:40]} 38. Bxg8 {[%clk 0:00:26]}  Rxb5 {[%clk 0:01:41]} 39. Re2 {[%clk 0:00:25]}  Ra5 {[%clk 0:01:41]} 40. Bxe6+ {[%clk 0:00:24]}  Kd6 {[%clk 0:01:41]} 41. Bc8 {[%clk 0:00:24]}  d4 {[%clk 0:01:41]} 42. f4 {[%clk 0:00:21]}  Kd5 {[%clk 0:01:39]} 43. f5 {[%clk 0:00:16]}  d3 {[%clk 0:01:39]} 44. Rd2 {[%clk 0:00:15]}  Ke4 {[%clk 0:01:39]} 45. Kf2 {[%clk 0:00:15]}  Rc5 {[%clk 0:01:31]} 46. Bb7+ {[%clk 0:00:16]}  Kxf5 {[%clk 0:01:29]} 47. Rxd3 {[%clk 0:00:16]}  Ke5 {[%clk 0:01:23]} 48. Rd7 {[%clk 0:00:16]}  Rc2+ {[%clk 0:01:22]} 49. Ke3 {[%clk 0:00:16]}  Rc3+ {[%clk 0:01:22]} 50. Rd3 {[%clk 0:00:17]}  Rc5 {[%clk 0:01:17]} 51. Bf3 {[%clk 0:00:17]}  Ra5 {[%clk 0:01:17]} 52. Bb7 {[%clk 0:00:17]}  Rc5 {[%clk 0:01:17]} 53. Kd2 {[%clk 0:00:14]}  Kf4 {[%clk 0:01:17]} 54. Rd7 {[%clk 0:00:13]}  Kg3 {[%clk 0:01:12]} 55. Be4 {[%clk 0:00:13]}  Kxh3 {[%clk 0:01:11]} 56. Rxa7 {[%clk 0:00:14]}  Ra5 {[%clk 0:01:12]} 57. Bd3 {[%clk 0:00:14]}  b5 {[%clk 0:01:12]} 58. Ra8 {[%clk 0:00:12]}  Kh2 {[%clk 0:01:11]} 59. a7 {[%clk 0:00:12]}  h3 {[%clk 0:01:11]} 60. Be2 {[%clk 0:00:12]}  h4 {[%clk 0:01:09]} 61. Bg4 {[%clk 0:00:11]}  Kg3 {[%clk 0:01:09]} 62. Bd7 {[%clk 0:00:10]}  h2 {[%clk 0:01:08]} 63. Rg8+ {[%clk 0:00:09]}  Kf4 {[%clk 0:01:06]} 64. Bc6 {[%clk 0:00:09]}  Rxa7 {[%clk 0:01:06]} 65. Rh8 {[%clk 0:00:09]}  Kg3 {[%clk 0:01:02]} 66. Rg8+ {[%clk 0:00:09]}  Kf4 {[%clk 0:01:03]} 67. Rh8 {[%clk 0:00:10]}  Kg5 {[%clk 0:01:03]} 68. Rg8+ {[%clk 0:00:10]}  Kf6 {[%clk 0:01:03]} 69. Rh8 {[%clk 0:00:11]}  Rc7 {[%clk 0:01:02]} 70. Rxh4 {[%clk 0:00:09]}  Rxc6 {[%clk 0:01:02]} 71. Rxh2 {[%clk 0:00:09]}  Rc5 {[%clk 0:00:59]} 72. Kd3 {[%clk 0:00:08]}  Ke6 {[%clk 0:00:59]} 73. Rh6+ {[%clk 0:00:08]}  Kd7 {[%clk 0:00:59]} 74. Kd4 {[%clk 0:00:08]}  Rc4+ {[%clk 0:00:59]} 75. Kd5 {[%clk 0:00:08]}  Kc7 {[%clk 0:01:00]} 76. Rg6 {[%clk 0:00:08]}  Kb7 {[%clk 0:01:00]} 77. Rf6 {[%clk 0:00:08]}  Rc8 {[%clk 0:01:00]} 78. Rg6 {[%clk 0:00:08]}  Rc1 {[%clk 0:01:00]} 79. Rf6 {[%clk 0:00:08]}  b4 {[%clk 0:01:00]} 80. Rf4 {[%clk 0:00:08]}  Rb1 {[%clk 0:01:01]} 81. Kc4 {[%clk 0:00:07]}  Kb6 {[%clk 0:01:01]} 82. Rf5 {[%clk 0:00:08]}  Ka6 {[%clk 0:01:00]} 83. Rg5 {[%clk 0:00:06]}  Rb2 {[%clk 0:00:58]} 84. Rf5 {[%clk 0:00:07]}  b3 {[%clk 0:00:56]} 85. Rf3 {[%clk 0:00:06]}  Ka5 {[%clk 0:00:54]} 86. Rxb3 {[%clk 0:00:07]}  Rxb3 {[%clk 0:00:55]} 87. Kxb3 {[%clk 0:00:07]} 1/2-1/2

[Event "January 2 Late 2024"]
[Site "https://www.chess.com"]
[Date "2024.01.02"]
[Round "11"]
[White "Kollars, Dmitrij"]
[Black "Song, Ethan"]
[Result "1-0"]
[Board "17"]
[TimeControl "180+1"]
[WhiteFideId "12909572"]
[BlackFideId "62900412"]
[WhiteElo "3002"]
[BlackElo "2779"]
[WhiteTeam "GER"]
[BlackTeam "CAN"]
[WhiteClock "0:00:17"]
[BlackClock "0:00:18"]

1. e4 {[%clk 0:03:00]}  e5 {[%clk 0:02:59]} 2. Nf3 {[%clk 0:03:00]}  Nc6 {[%clk 0:02:56]} 3. Bb5 {[%clk 0:03:00]}  Nf6 {[%clk 0:02:57]} 4. O-O {[%clk 0:02:58]}  Nxe4 {[%clk 0:02:57]} 5. Re1 {[%clk 0:02:58]}  Nd6 {[%clk 0:02:57]} 6. Nxe5 {[%clk 0:02:59]}  Nxe5 {[%clk 0:02:57]} 7. Rxe5+ {[%clk 0:02:59]}  Be7 {[%clk 0:02:58]} 8. Bf1 {[%clk 0:03:00]}  O-O {[%clk 0:02:59]} 9. d4 {[%clk 0:02:59]}  Bf6 {[%clk 0:02:59]} 10. Re2 {[%clk 0:02:58]}  Re8 {[%clk 0:03:00]} 11. Bf4 {[%clk 0:02:55]}  Rxe2 {[%clk 0:03:00]} 12. Bxe2 {[%clk 0:02:55]}  Ne8 {[%clk 0:03:00]} 13. c4 {[%clk 0:02:54]}  d6 {[%clk 0:02:58]} 14. Nc3 {[%clk 0:02:53]}  c6 {[%clk 0:02:56]} 15. Ne4 {[%clk 0:02:51]}  Bf5 {[%clk 0:02:53]} 16. Nxf6+ {[%clk 0:02:49]}  Nxf6 {[%clk 0:02:54]} 17. Qb3 {[%clk 0:02:47]}  b6 {[%clk 0:02:52]} 18. Re1 {[%clk 0:02:44]}  Qd7 {[%clk 0:02:52]} 19. Bf3 {[%clk 0:02:42]}  d5 {[%clk 0:02:49]} 20. Be5 {[%clk 0:02:27]}  Re8 {[%clk 0:02:35]} 21. Rc1 {[%clk 0:02:26]}  Be6 {[%clk 0:02:27]} 22. c5 {[%clk 0:02:23]}  b5 {[%clk 0:02:25]} 23. a4 {[%clk 0:02:16]}  a6 {[%clk 0:02:23]} 24. axb5 {[%clk 0:02:14]}  axb5 {[%clk 0:02:23]} 25. Qa3 {[%clk 0:02:09]}  Ne4 {[%clk 0:02:15]} 26. h3 {[%clk 0:01:57]}  Nd2 {[%clk 0:02:09]} 27. Bh5 {[%clk 0:01:43]}  Nc4 {[%clk 0:02:06]} 28. Qg3 {[%clk 0:01:39]}  Nxe5 {[%clk 0:02:05]} 29. dxe5 {[%clk 0:01:40]}  d4 {[%clk 0:01:58]} 30. Rd1 {[%clk 0:01:37]}  Qd5 {[%clk 0:01:57]} 31. b4 {[%clk 0:01:34]}  Qc4 {[%clk 0:01:42]} 32. Qd3 {[%clk 0:00:45]}  Qxb4 {[%clk 0:01:17]} 33. Qxd4 {[%clk 0:00:45]}  Qxd4 {[%clk 0:01:08]} 34. Rxd4 {[%clk 0:00:46]}  Bd5 {[%clk 0:01:08]} 35. f4 {[%clk 0:00:45]}  f6 {[%clk 0:01:09]} 36. exf6 {[%clk 0:00:42]}  g6 {[%clk 0:01:06]} 37. Bf3 {[%clk 0:00:35]}  Bxf3 {[%clk 0:00:45]} 38. gxf3 {[%clk 0:00:36]}  Kf7 {[%clk 0:00:45]} 39. Rd7+ {[%clk 0:00:21]}  Kxf6 {[%clk 0:00:45]} 40. Rc7 {[%clk 0:00:22]}  Re6 {[%clk 0:00:43]} 41. Kf2 {[%clk 0:00:22]}  h5 {[%clk 0:00:43]} 42. Kg3 {[%clk 0:00:22]}  Kf5 {[%clk 0:00:34]} 43. Rf7+ {[%clk 0:00:21]}  Rf6 {[%clk 0:00:35]} 44. Re7 {[%clk 0:00:21]}  Re6 {[%clk 0:00:35]} 45. Rf7+ {[%clk 0:00:19]}  Rf6 {[%clk 0:00:35]} 46. Rd7 {[%clk 0:00:20]}  Re6 {[%clk 0:00:35]} 47. h4 {[%clk 0:00:17]}  Kf6 {[%clk 0:00:32]} 48. Rc7 {[%clk 0:00:16]}  Kf5 {[%clk 0:00:32]} 49. Rf7+ {[%clk 0:00:15]}  Rf6 {[%clk 0:00:33]} 50. Rd7 {[%clk 0:00:13]}  Re6 {[%clk 0:00:33]} 51. Rf7+ {[%clk 0:00:14]}  Rf6 {[%clk 0:00:33]} 52. Re7 {[%clk 0:00:14]}  Re6 {[%clk 0:00:33]} 53. Rc7 {[%clk 0:00:15]}  Rf6 {[%clk 0:00:33]} 54. Rc8 {[%clk 0:00:14]}  Re6 {[%clk 0:00:33]} 55. Rd8 {[%clk 0:00:14]}  Rf6 {[%clk 0:00:32]} 56. Rd7 {[%clk 0:00:13]}  Re6 {[%clk 0:00:32]} 57. Rd4 {[%clk 0:00:14]}  Rf6 {[%clk 0:00:31]} 58. Kf2 {[%clk 0:00:14]}  Re6 {[%clk 0:00:31]} 59. Kg2 {[%clk 0:00:14]}  Re2+ {[%clk 0:00:31]} 60. Kg3 {[%clk 0:00:14]}  Re6 {[%clk 0:00:32]} 61. Kf2 {[%clk 0:00:15]}  Rf6 {[%clk 0:00:32]} 62. Ke2 {[%clk 0:00:15]}  Re6+ {[%clk 0:00:33]} 63. Kd3 {[%clk 0:00:15]}  Rf6 {[%clk 0:00:31]} 64. Kc3 {[%clk 0:00:15]}  Re6 {[%clk 0:00:32]} 65. Kb4 {[%clk 0:00:15]}  Rf6 {[%clk 0:00:18]} 66. Ka5 {[%clk 0:00:15]}  Re6 {[%clk 0:00:17]} 67. Kb6 {[%clk 0:00:15]}  Re3 {[%clk 0:00:16]} 68. Kxc6 {[%clk 0:00:14]}  Rxf3 {[%clk 0:00:17]} 69. Kxb5 {[%clk 0:00:14]}  Rc3 {[%clk 0:00:16]} 70. c6 {[%clk 0:00:14]}  Kg4 {[%clk 0:00:16]} 71. Rc4 {[%clk 0:00:14]}  Rb3+ {[%clk 0:00:17]} 72. Ka6 {[%clk 0:00:15]}  Rb8 {[%clk 0:00:16]} 73. c7 {[%clk 0:00:15]}  Rc8 {[%clk 0:00:16]} 74. Kb7 {[%clk 0:00:15]}  Rxc7+ {[%clk 0:00:17]} 75. Kxc7 {[%clk 0:00:16]}  Kxh4 {[%clk 0:00:17]} 76. f5+ {[%clk 0:00:16]}  Kg5 {[%clk 0:00:18]} 77. fxg6 {[%clk 0:00:17]}  Kxg6 {[%clk 0:00:19]} 78. Kd6 {[%clk 0:00:17]}  Kg5 {[%clk 0:00:19]} 79. Ke5 {[%clk 0:00:17]}  h4 {[%clk 0:00:20]} 80. Ke4 {[%clk 0:00:16]}  Kg4 {[%clk 0:00:20]} 81. Ke3+ {[%clk 0:00:16]}  Kg3 {[%clk 0:00:21]} 82. Ke2 {[%clk 0:00:16]}  h3 {[%clk 0:00:21]} 83. Kf1 {[%clk 0:00:16]}  h2 {[%clk 0:00:21]} 84. Rc3+ {[%clk 0:00:16]}  Kg4 {[%clk 0:00:18]} 85. Kg2 {[%clk 0:00:17]} 1-0

[Event "January 2 Late 2024"]
[Site "https://www.chess.com"]
[Date "2024.01.02"]
[Round "11"]
[White "Salem, A.R. Saleh"]
[Black "Lie, Kjetil A."]
[Result "1-0"]
[Board "19"]
[TimeControl "180+1"]
[WhiteFideId "9301348"]
[BlackFideId "1501984"]
[WhiteElo "2974"]
[BlackElo "2764"]
[WhiteTeam "UAE"]
[BlackTeam "NOR"]
[WhiteClock "0:01:17"]
[BlackClock "0:00:06"]

1. d4 {[%clk 0:03:00]}  Nf6 {[%clk 0:02:59]} 2. c4 {[%clk 0:03:01]}  c5 {[%clk 0:02:59]} 3. d5 {[%clk 0:03:01]}  e6 {[%clk 0:03:00]} 4. Nc3 {[%clk 0:03:01]}  exd5 {[%clk 0:03:00]} 5. cxd5 {[%clk 0:03:02]}  d6 {[%clk 0:03:01]} 6. e4 {[%clk 0:03:03]}  g6 {[%clk 0:03:01]} 7. f4 {[%clk 0:03:04]}  Bg7 {[%clk 0:03:01]} 8. Bb5+ {[%clk 0:03:04]}  Nfd7 {[%clk 0:03:01]} 9. Nf3 {[%clk 0:03:05]}  a6 {[%clk 0:03:01]} 10. Bd3 {[%clk 0:03:06]}  b5 {[%clk 0:03:01]} 11. O-O {[%clk 0:03:06]}  O-O {[%clk 0:03:00]} 12. h3 {[%clk 0:03:07]}  Ra7 {[%clk 0:03:00]} 13. a3 {[%clk 0:03:06]}  Nf6 {[%clk 0:02:59]} 14. f5 {[%clk 0:03:03]}  Nfd7 {[%clk 0:02:54]} 15. Bf4 {[%clk 0:02:56]}  Qe7 {[%clk 0:02:55]} 16. Qd2 {[%clk 0:02:48]}  Ne5 {[%clk 0:02:54]} 17. Nxe5 {[%clk 0:02:38]}  Bxe5 {[%clk 0:02:55]} 18. Bh6 {[%clk 0:02:29]}  Re8 {[%clk 0:02:52]} 19. Rae1 {[%clk 0:02:04]}  Nd7 {[%clk 0:02:52]} 20. Kh1 {[%clk 0:02:05]}  c4 {[%clk 0:02:43]} 21. Bc2 {[%clk 0:02:04]}  Nc5 {[%clk 0:02:39]} 22. Ne2 {[%clk 0:01:56]}  Qh4 {[%clk 0:02:18]} 23. Nd4 {[%clk 0:01:44]}  Bxd4 {[%clk 0:02:05]} 24. Bg5 {[%clk 0:01:44]}  Qh5 {[%clk 0:00:25]} 25. Bd1 {[%clk 0:01:43]}  Nb3 {[%clk 0:00:26]} 26. Bxb3 {[%clk 0:01:38]}  cxb3 {[%clk 0:00:25]} 27. Qxd4 {[%clk 0:01:38]}  Rc7 {[%clk 0:00:20]} 28. Qf6 {[%clk 0:01:31]}  Rc2 {[%clk 0:00:13]} 29. Re3 {[%clk 0:01:26]}  gxf5 {[%clk 0:00:07]} 30. Rg3 {[%clk 0:01:17]}  f4 {[%clk 0:00:06]} 1-0

[Event "January 2 Late 2024"]
[Site "https://www.chess.com"]
[Date "2024.01.02"]
[Round "11"]
[White "Yoo, Christopher Woojin"]
[Black "Bardyk, Artem"]
[Result "1-0"]
[Board "20"]
[TimeControl "180+1"]
[WhiteFideId "30909694"]
[BlackFideId "34349979"]
[WhiteElo "2925"]
[BlackElo "2734"]
[WhiteTeam "USA"]
[BlackTeam "RUS"]
[WhiteClock "0:02:34"]
[BlackClock "0:00:42"]

1. e4 {[%clk 0:03:00]}  e5 {[%clk 0:02:59]} 2. Nf3 {[%clk 0:03:01]}  Nc6 {[%clk 0:02:59]} 3. Bb5 {[%clk 0:03:01]}  Nge7 {[%clk 0:02:59]} 4. O-O {[%clk 0:03:00]}  Ng6 {[%clk 0:03:00]} 5. c3 {[%clk 0:03:00]}  d5 {[%clk 0:02:57]} 6. Qa4 {[%clk 0:02:55]}  dxe4 {[%clk 0:02:56]} 7. Qxe4 {[%clk 0:02:49]}  f5 {[%clk 0:02:49]} 8. Qa4 {[%clk 0:02:48]}  Bd6 {[%clk 0:02:34]} 9. d4 {[%clk 0:02:46]}  e4 {[%clk 0:02:18]} 10. Bg5 {[%clk 0:02:45]}  Qd7 {[%clk 0:02:10]} 11. d5 {[%clk 0:02:43]}  O-O {[%clk 0:01:08]} 12. dxc6 {[%clk 0:02:41]}  Qf7 {[%clk 0:01:05]} 13. Bc4 {[%clk 0:02:38]}  Be6 {[%clk 0:01:01]} 14. Bxe6 {[%clk 0:02:39]}  Qxe6 {[%clk 0:01:02]} 15. Nd4 {[%clk 0:02:39]}  Qe5 {[%clk 0:00:56]} 16. f4 {[%clk 0:02:38]}  exf3 {[%clk 0:00:50]} 17. Qc4+ {[%clk 0:02:34]}  Kh8 {[%clk 0:00:49]} 18. Nxf3 {[%clk 0:02:35]}  Qe4 {[%clk 0:00:42]} 19. Nbd2 {[%clk 0:02:34]} 1-0

[Event "January 2 Late 2024"]
[Site "https://www.chess.com"]
[Date "2024.01.02"]
[Round "11"]
[White "Mahdavi, Reza"]
[Black "Niedbala, Bartlomiej"]
[Result "1-0"]
[Board "24"]
[TimeControl "180+1"]
[WhiteFideId "12595926"]
[BlackFideId "21834008"]
[WhiteElo "2874"]
[BlackElo "2671"]
[WhiteTeam "IRI"]
[BlackTeam "POL"]
[WhiteClock "0:00:46"]
[BlackClock "0:00:00"]

1. e4 {[%clk 0:03:00]}  Nf6 {[%clk 0:02:54]} 2. d3 {[%clk 0:03:00]}  e5 {[%clk 0:02:53]} 3. Nf3 {[%clk 0:03:00]}  Nc6 {[%clk 0:02:52]} 4. g3 {[%clk 0:03:00]}  Bc5 {[%clk 0:02:52]} 5. Bg2 {[%clk 0:03:00]}  d6 {[%clk 0:02:53]} 6. h3 {[%clk 0:03:00]}  O-O {[%clk 0:02:48]} 7. O-O {[%clk 0:02:59]}  a5 {[%clk 0:02:44]} 8. c3 {[%clk 0:02:59]}  Ba7 {[%clk 0:02:37]} 9. Nbd2 {[%clk 0:02:59]}  h6 {[%clk 0:02:35]} 10. Nc4 {[%clk 0:02:57]}  Re8 {[%clk 0:02:34]} 11. Be3 {[%clk 0:02:58]}  b5 {[%clk 0:02:31]} 12. Ncd2 {[%clk 0:02:54]}  b4 {[%clk 0:02:05]} 13. Bxa7 {[%clk 0:02:50]}  Rxa7 {[%clk 0:02:06]} 14. Rc1 {[%clk 0:02:48]}  Ne7 {[%clk 0:02:05]} 15. d4 {[%clk 0:02:35]}  Ng6 {[%clk 0:02:01]} 16. dxe5 {[%clk 0:02:28]}  dxe5 {[%clk 0:02:02]} 17. Qc2 {[%clk 0:02:19]}  Qe7 {[%clk 0:01:57]} 18. Rfe1 {[%clk 0:02:13]}  Be6 {[%clk 0:01:50]} 19. b3 {[%clk 0:02:11]}  c5 {[%clk 0:01:43]} 20. cxb4 {[%clk 0:02:07]}  cxb4 {[%clk 0:01:39]} 21. Qc5 {[%clk 0:02:08]}  Qxc5 {[%clk 0:01:37]} 22. Rxc5 {[%clk 0:02:09]}  Nd7 {[%clk 0:01:37]} 23. Rc6 {[%clk 0:02:05]}  a4 {[%clk 0:01:26]} 24. Bf1 {[%clk 0:02:02]}  Ne7 {[%clk 0:01:22]} 25. Rc2 {[%clk 0:01:59]}  axb3 {[%clk 0:01:20]} 26. axb3 {[%clk 0:02:00]}  Rea8 {[%clk 0:01:18]} 27. Rec1 {[%clk 0:01:57]}  Ra2 {[%clk 0:01:05]} 28. Kg2 {[%clk 0:01:55]}  Rxc2 {[%clk 0:01:04]} 29. Rxc2 {[%clk 0:01:56]}  Rc8 {[%clk 0:00:44]} 30. Ra2 {[%clk 0:01:49]}  Nc5 {[%clk 0:00:36]} 31. Nxe5 {[%clk 0:01:33]}  Nxb3 {[%clk 0:00:29]} 32. Nxb3 {[%clk 0:01:33]}  Bxb3 {[%clk 0:00:29]} 33. Ra7 {[%clk 0:01:34]}  Nc6 {[%clk 0:00:18]} 34. Nxc6 {[%clk 0:01:34]}  Rxc6 {[%clk 0:00:18]} 35. Rb7 {[%clk 0:01:34]}  Bc2 {[%clk 0:00:17]} 36. Rxb4 {[%clk 0:01:33]}  Re6 {[%clk 0:00:16]} 37. Kf3 {[%clk 0:01:32]}  f5 {[%clk 0:00:15]} 38. Bc4 {[%clk 0:01:31]}  Bxe4+ {[%clk 0:00:12]} 39. Kf4 {[%clk 0:01:32]}  g5+ {[%clk 0:00:11]} 40. Ke3 {[%clk 0:01:32]}  Bd5+ {[%clk 0:00:11]} 41. Kd3 {[%clk 0:01:28]}  Bxc4+ {[%clk 0:00:11]} 42. Rxc4 {[%clk 0:01:29]}  Kg7 {[%clk 0:00:11]} 43. Rc2 {[%clk 0:01:22]}  Kf6 {[%clk 0:00:10]} 44. Kd4 {[%clk 0:01:22]}  Rd6+ {[%clk 0:00:09]} 45. Kc5 {[%clk 0:01:23]}  Rd8 {[%clk 0:00:09]} 46. Re2 {[%clk 0:01:24]}  h5 {[%clk 0:00:07]} 47. Kc6 {[%clk 0:01:23]}  Rd1 {[%clk 0:00:05]} 48. Kc5 {[%clk 0:01:11]}  Rh1 {[%clk 0:00:05]} 49. Kd6 {[%clk 0:01:10]}  Rd1+ {[%clk 0:00:03]} 50. Kc5 {[%clk 0:01:10]}  f4 {[%clk 0:00:03]} 51. gxf4 {[%clk 0:01:08]}  gxf4 {[%clk 0:00:04]} 52. Kc4 {[%clk 0:01:04]}  Kf5 {[%clk 0:00:04]} 53. Kc3 {[%clk 0:00:59]}  Rh1 {[%clk 0:00:05]} 54. Re8 {[%clk 0:00:57]}  Rxh3+ {[%clk 0:00:06]} 55. Kd4 {[%clk 0:00:57]}  Kg4 {[%clk 0:00:05]} 56. Ke4 {[%clk 0:00:56]}  Rh2 {[%clk 0:00:04]} 57. Rg8+ {[%clk 0:00:56]}  Kh4 {[%clk 0:00:04]} 58. f3 {[%clk 0:00:52]}  Re2+ {[%clk 0:00:04]} 59. Kxf4 {[%clk 0:00:53]}  Kh3 {[%clk 0:00:04]} 60. Rh8 {[%clk 0:00:49]}  h4 {[%clk 0:00:05]} 61. Kg5 {[%clk 0:00:50]}  Rg2+ {[%clk 0:00:04]} 62. Kf5 {[%clk 0:00:50]}  Rf2 {[%clk 0:00:05]} 63. f4 {[%clk 0:00:50]}  Rf1 {[%clk 0:00:04]} 64. Kg5 {[%clk 0:00:50]}  Kg3 {[%clk 0:00:02]} 65. Rxh4 {[%clk 0:00:49]}  Ra1 {[%clk 0:00:03]} 66. Rh8 {[%clk 0:00:48]}  Ra7 {[%clk 0:00:01]} 67. f5 {[%clk 0:00:46]}  Rg7+ {[%clk 0:00:01]} 68. Kf6 {[%clk 0:00:46]}  Rg8 {[%clk 0:00:00]} 69. Rxg8+ {[%clk 0:00:46]} 1-0